[Event "*** Titled Tuesday Blitz"]
[Site "Chess.com"]
[Date "2020.05.05"]
[Round "5"]
[White "Gubajdullin"]
[Black "VincentKeymer"]
[Result "1-0"]
[WhiteElo "2554"]
[BlackElo "2707"]
[TimeControl "180+1"]
[EndTime "10:56:17 PDT"]
[Termination "Gubajdullin won by resignation"]

1. d4 {[%clk 0:03:00.9]} 1... Nf6 {[%clk 0:02:59.4]} 2. Bf4 {[%clk 0:02:59.8]}
2... e6 {[%clk 0:02:58.3]} 3. e3 {[%clk 0:02:59.6]} 3... c5 {[%clk 0:02:58.2]}
4. c3 {[%clk 0:02:58.3]} 4... Nc6 {[%clk 0:02:57.7]} 5. Nd2 {[%clk 0:02:57.6]}
5... b6 {[%clk 0:02:56.3]} 6. Ngf3 {[%clk 0:02:55.8]} 6... Bb7 {[%clk
0:02:50.6]} 7. h3 {[%clk 0:02:55.5]} 7... d5 {[%clk 0:02:46.6]} 8. Bd3 {[%clk
0:02:53.1]} 8... Bd6 {[%clk 0:02:46.1]} 9. Ne5 {[%clk 0:02:29.6]} 9... Qc7
{[%clk 0:02:44.9]} 10. Ndf3 {[%clk 0:02:29.6]} 10... Nd7 {[%clk 0:02:43.3]} 11.
Nxd7 {[%clk 0:02:25.5]} 11... Qxd7 {[%clk 0:02:40.6]} 12. O-O {[%clk 0:02:21.4]}
12... Bxf4 {[%clk 0:02:31.1]} 13. exf4 {[%clk 0:02:18.6]} 13... O-O {[%clk
0:02:24.3]} 14. Re1 {[%clk 0:02:13.7]} 14... cxd4 {[%clk 0:02:19.8]} 15. cxd4
{[%clk 0:02:10.2]} 15... Rfc8 {[%clk 0:02:17.3]} 16. Bxh7+ {[%clk 0:02:02]}
16... Kxh7 {[%clk 0:02:15.9]} 17. Ng5+ {[%clk 0:02:00.2]} 17... Kg8 {[%clk
0:02:00.8]} 18. Qh5 {[%clk 0:01:55]} 18... Nxd4 {[%clk 0:01:47.6]} 19. Qh7+
{[%clk 0:01:49.5]} 19... Kf8 {[%clk 0:01:47.8]} 20. Qh8+ {[%clk 0:01:49.8]}
20... Ke7 {[%clk 0:01:42.5]} 21. Qxg7 {[%clk 0:01:49.6]} 21... Rg8 {[%clk
0:01:11.2]} 22. Qxd4 {[%clk 0:01:47.5]} 22... Rac8 {[%clk 0:01:11.1]} 23. Nh7
{[%clk 0:01:40.9]} 23... Qd6 {[%clk 0:00:59.1]} 24. Qf6+ {[%clk 0:01:36.7]}
24... Ke8 {[%clk 0:00:58.7]} 25. f5 {[%clk 0:01:34.3]} 25... d4 {[%clk
0:00:54.8]} 26. fxe6 {[%clk 0:01:12.6]} 26... Rxg2+ {[%clk 0:00:45.2]} 27. Kf1
{[%clk 0:01:06.3]} 27... Bd5 {[%clk 0:00:20.1]} 28. Qxf7+ {[%clk 0:00:59.8]}
28... Kd8 {[%clk 0:00:20.1]} 29. e7+ {[%clk 0:00:59.5]} 29... Kc7 {[%clk
0:00:19.5]} 30. Rac1+ {[%clk 0:00:48.5]} 30... Kb7 {[%clk 0:00:16.8]} 31. e8=Q+
{[%clk 0:00:43.1]} 31... Ka6 {[%clk 0:00:15]} 32. Qxc8+ {[%clk 0:00:42]} 1-0

[Event "*** Titled Tuesday Blitz"]
[Site "Chess.com"]
[Date "2020.05.05"]
[Round "5"]
[White "Raja3401"]
[Black "WPWPWP-2015"]
[Result "1-0"]
[WhiteElo "2707"]
[BlackElo "2439"]
[TimeControl "180+1"]
[EndTime "10:56:18 PDT"]
[Termination "Raja3401 won on time"]

1. e4 {[%clk 0:03:00.9]} 1... c5 {[%clk 0:02:56.6]} 2. Nf3 {[%clk 0:02:59.6]}
2... e6 {[%clk 0:02:56.6]} 3. d4 {[%clk 0:02:57.2]} 3... cxd4 {[%clk 0:02:56.6]}
4. Nxd4 {[%clk 0:02:58.1]} 4... Nc6 {[%clk 0:02:56.2]} 5. Nc3 {[%clk 0:02:46.5]}
5... Qc7 {[%clk 0:02:55.4]} 6. g3 {[%clk 0:02:45.3]} 6... a6 {[%clk 0:02:54.3]}
7. Bg2 {[%clk 0:02:44.1]} 7... Nf6 {[%clk 0:02:54.2]} 8. O-O {[%clk 0:02:43.5]}
8... Bc5 {[%clk 0:02:49.7]} 9. Nxc6 {[%clk 0:02:40.5]} 9... dxc6 {[%clk
0:02:42.9]} 10. e5 {[%clk 0:02:39.9]} 10... Qxe5 {[%clk 0:02:37.2]} 11. Bf4
{[%clk 0:02:37.2]} 11... Qd4 {[%clk 0:02:35.2]} 12. Qe1 {[%clk 0:02:36.7]} 12...
O-O {[%clk 0:02:29.9]} 13. Be5 {[%clk 0:02:19.4]} 13... Qg4 {[%clk 0:02:23]} 14.
h3 {[%clk 0:02:09.7]} 14... Qg6 {[%clk 0:02:16.3]} 15. Rd1 {[%clk 0:02:07]}
15... Nd5 {[%clk 0:02:09.1]} 16. Ne4 {[%clk 0:02:05.7]} 16... Be7 {[%clk
0:02:03.6]} 17. c4 {[%clk 0:01:57.9]} 17... Nb6 {[%clk 0:01:52.5]} 18. Bd6
{[%clk 0:01:54]} 18... Bxd6 {[%clk 0:01:43.8]} 19. Nxd6 {[%clk 0:01:54.9]} 19...
f6 {[%clk 0:01:09.7]} 20. Qb4 {[%clk 0:01:46.1]} 20... Nd5 {[%clk 0:00:42.1]}
21. cxd5 {[%clk 0:01:36.4]} 21... a5 {[%clk 0:00:29.7]} 22. Nxc8 {[%clk
0:01:29.5]} 22... Raxc8 {[%clk 0:00:14.6]} 23. Qxb7 {[%clk 0:01:26.6]} 23...
exd5 {[%clk 0:00:12.3]} 24. Rfe1 {[%clk 0:01:20.3]} 24... f5 {[%clk 0:00:05]}
25. Qd7 {[%clk 0:01:08.7]} 25... f4 {[%clk 0:00:03.8]} 26. g4 {[%clk 0:00:59.5]}
26... f3 {[%clk 0:00:03.6]} 27. Bf1 {[%clk 0:00:59.2]} 27... Qf6 {[%clk
0:00:02.5]} 28. Qe6+ {[%clk 0:00:57.7]} 28... Qxe6 {[%clk 0:00:02.4]} 29. Rxe6
{[%clk 0:00:58.6]} 29... Kf7 {[%clk 0:00:02.9]} 30. Re3 {[%clk 0:00:58.1]} 30...
Kg6 {[%clk 0:00:02.5]} 31. Bd3+ {[%clk 0:00:56.8]} 31... Kg5 {[%clk 0:00:02.8]}
32. Re5+ {[%clk 0:00:57.1]} 32... Kf4 {[%clk 0:00:01.4]} 33. Rde1 {[%clk
0:00:56.7]} 1-0

[Event "*** Titled Tuesday Blitz"]
[Site "Chess.com"]
[Date "2020.05.05"]
[Round "5"]
[White "HanSchut"]
[Black "Bossche-CM"]
[Result "0-1"]
[WhiteElo "2230"]
[BlackElo "2449"]
[TimeControl "180+1"]
[EndTime "10:56:22 PDT"]
[Termination "Bossche-CM won on time"]

1. e4 {[%clk 0:03:00.9]} 1... c5 {[%clk 0:02:59.9]} 2. Nf3 {[%clk 0:03:00.8]}
2... e6 {[%clk 0:03:00.2]} 3. c4 {[%clk 0:03:00.5]} 3... Nc6 {[%clk 0:02:57.2]}
4. Nc3 {[%clk 0:02:50.8]} 4... e5 {[%clk 0:02:48.5]} 5. Nd5 {[%clk 0:02:49.8]}
5... Nf6 {[%clk 0:02:46]} 6. d3 {[%clk 0:02:48.2]} 6... h6 {[%clk 0:02:45.9]} 7.
Be2 {[%clk 0:02:48.1]} 7... d6 {[%clk 0:02:43.9]} 8. Be3 {[%clk 0:02:47.9]} 8...
g5 {[%clk 0:02:38.8]} 9. b4 {[%clk 0:02:44.6]} 9... Nxd5 {[%clk 0:02:37.1]} 10.
exd5 {[%clk 0:02:34.5]} 10... Nxb4 {[%clk 0:02:36]} 11. h4 {[%clk 0:02:23.9]}
11... g4 {[%clk 0:02:34.3]} 12. Nd2 {[%clk 0:02:23]} 12... Bf5 {[%clk
0:02:28.6]} 13. Ne4 {[%clk 0:01:57.1]} 13... Bxe4 {[%clk 0:02:21.9]} 14. dxe4
{[%clk 0:01:54.4]} 14... h5 {[%clk 0:02:22.4]} 15. f3 {[%clk 0:01:47.1]} 15...
Bh6 {[%clk 0:02:19]} 16. Bxh6 {[%clk 0:01:37.2]} 16... Rxh6 {[%clk 0:02:19.9]}
17. fxg4 {[%clk 0:01:34.1]} 17... hxg4 {[%clk 0:02:20.8]} 18. g3 {[%clk
0:01:10.6]} 18... Qa5 {[%clk 0:02:19.6]} 19. O-O {[%clk 0:01:04.8]} 19... Qa3
{[%clk 0:02:17.2]} 20. Kg2 {[%clk 0:00:58.9]} 20... Qe3 {[%clk 0:02:14.6]} 21.
Bxg4 {[%clk 0:00:51.2]} 21... Qxe4+ {[%clk 0:02:12.5]} 22. Bf3 {[%clk
0:00:45.8]} 22... Qxc4 {[%clk 0:02:05.1]} 23. Qa4+ {[%clk 0:00:38.4]} 23... b5
{[%clk 0:01:54.7]} 24. Qa5 {[%clk 0:00:25.6]} 24... Rf6 {[%clk 0:01:25.4]} 25.
a3 {[%clk 0:00:18.5]} 25... Nc2 {[%clk 0:01:22.7]} 26. Qa6 {[%clk 0:00:16.9]}
26... Kf8 {[%clk 0:01:11.8]} 27. Rac1 {[%clk 0:00:12.4]} 27... Ne3+ {[%clk
0:01:06.5]} 28. Kh3 {[%clk 0:00:10.1]} 28... Qd4 {[%clk 0:01:00]} 29. Rf2 {[%clk
0:00:07]} 29... e4 {[%clk 0:00:45.5]} 30. Qc6 {[%clk 0:00:04.3]} 30... Re8
{[%clk 0:00:41.2]} 0-1

[Event "*** Titled Tuesday Blitz"]
[Site "Chess.com"]
[Date "2020.05.05"]
[Round "5"]
[White "H3nriqueTV"]
[Black "BillCoe"]
[Result "0-1"]
[WhiteElo "2147"]
[BlackElo "2020"]
[TimeControl "180+1"]
[EndTime "10:56:22 PDT"]
[Termination "BillCoe won by resignation"]

1. e4 {[%clk 0:03:00.9]} 1... c5 {[%clk 0:02:59.2]} 2. Nf3 {[%clk 0:02:54.3]}
2... e6 {[%clk 0:02:59.4]} 3. g3 {[%clk 0:02:55]} 3... a6 {[%clk 0:02:58.6]} 4.
Bg2 {[%clk 0:02:55.7]} 4... g6 {[%clk 0:02:58.6]} 5. d3 {[%clk 0:02:56.4]} 5...
Bg7 {[%clk 0:02:58.5]} 6. O-O {[%clk 0:02:56.7]} 6... Nc6 {[%clk 0:02:57.3]} 7.
c3 {[%clk 0:02:57.4]} 7... Nge7 {[%clk 0:02:56.1]} 8. Bg5 {[%clk 0:02:57.9]}
8... h6 {[%clk 0:02:54.3]} 9. Be3 {[%clk 0:02:51.3]} 9... b6 {[%clk 0:02:53.3]}
10. d4 {[%clk 0:02:46.6]} 10... cxd4 {[%clk 0:02:49.4]} 11. cxd4 {[%clk
0:02:47.5]} 11... d5 {[%clk 0:02:48.8]} 12. Nc3 {[%clk 0:02:45.7]} 12... dxe4
{[%clk 0:02:43.5]} 13. Nxe4 {[%clk 0:02:45.8]} 13... O-O {[%clk 0:02:43.8]} 14.
Qd2 {[%clk 0:02:44.3]} 14... Kh7 {[%clk 0:02:42.6]} 15. Rac1 {[%clk 0:02:34.6]}
15... Bb7 {[%clk 0:02:36.3]} 16. Rfd1 {[%clk 0:02:05.2]} 16... Nd5 {[%clk
0:02:35.8]} 17. h4 {[%clk 0:01:42.6]} 17... Nce7 {[%clk 0:02:31.3]} 18. h5
{[%clk 0:01:41.5]} 18... Nxe3 {[%clk 0:02:22.6]} 19. Qxe3 {[%clk 0:01:40.9]}
19... Nf5 {[%clk 0:02:08.5]} 20. Qd3 {[%clk 0:01:38.3]} 20... Bd5 {[%clk
0:01:57.1]} 21. a3 {[%clk 0:01:14.9]} 21... Qd7 {[%clk 0:01:38.9]} 22. Ne5
{[%clk 0:01:14.9]} 22... Qb7 {[%clk 0:01:29.7]} 23. b4 {[%clk 0:00:44.1]} 23...
Rad8 {[%clk 0:01:23]} 24. hxg6+ {[%clk 0:00:37.2]} 24... fxg6 {[%clk 0:01:21.4]}
25. Qe2 {[%clk 0:00:37.7]} 25... Nxd4 {[%clk 0:01:12.1]} 26. Rxd4 {[%clk
0:00:34.1]} 26... Bxe5 {[%clk 0:01:12.4]} 27. Rdd1 {[%clk 0:00:33.7]} 27... Bg7
{[%clk 0:01:02.6]} 28. Qg4 {[%clk 0:00:33.1]} 28... Rf5 {[%clk 0:00:57.6]} 29.
Qh4 {[%clk 0:00:27.6]} 29... Rdf8 {[%clk 0:00:55.2]} 30. Rd2 {[%clk 0:00:24.7]}
30... g5 {[%clk 0:00:46.9]} 31. Qh3 {[%clk 0:00:21.1]} 31... Bxe4 {[%clk
0:00:43.4]} 32. g4 {[%clk 0:00:20.4]} 32... Bxg2 {[%clk 0:00:39.8]} 33. Qxg2
{[%clk 0:00:18.4]} 33... Qxg2+ {[%clk 0:00:39.3]} 34. Kxg2 {[%clk 0:00:19.3]}
34... Rf4 {[%clk 0:00:38.9]} 35. Rc7 {[%clk 0:00:19]} 35... R8f7 {[%clk
0:00:39]} 36. Kh3 {[%clk 0:00:19.7]} 0-1

[Event "*** Titled Tuesday Blitz"]
[Site "Chess.com"]
[Date "2020.05.05"]
[Round "5"]
[White "GM_LOADING"]
[Black "quesfr"]
[Result "1-0"]
[WhiteElo "2527"]
[BlackElo "2246"]
[TimeControl "180+1"]
[EndTime "10:56:23 PDT"]
[Termination "GM_LOADING won by resignation"]

1. e4 {[%clk 0:02:50.8]} 1... e6 {[%clk 0:02:59.9]} 2. d4 {[%clk 0:02:49]} 2...
d5 {[%clk 0:03:00.4]} 3. Nc3 {[%clk 0:02:49.5]} 3... Nf6 {[%clk 0:03:00.3]} 4.
Bg5 {[%clk 0:02:49.3]} 4... dxe4 {[%clk 0:02:59.5]} 5. Nxe4 {[%clk 0:02:48.9]}
5... Nbd7 {[%clk 0:03:00]} 6. Nxf6+ {[%clk 0:02:48.3]} 6... Nxf6 {[%clk
0:03:00.9]} 7. Nf3 {[%clk 0:02:48.6]} 7... h6 {[%clk 0:02:58.5]} 8. Bh4 {[%clk
0:02:48.3]} 8... c5 {[%clk 0:02:58.7]} 9. Bd3 {[%clk 0:02:47.3]} 9... Be7 {[%clk
0:02:51.2]} 10. O-O {[%clk 0:02:46.7]} 10... b6 {[%clk 0:02:45.5]} 11. dxc5
{[%clk 0:02:33.8]} 11... bxc5 {[%clk 0:02:44.2]} 12. Ne5 {[%clk 0:02:31.7]}
12... O-O {[%clk 0:02:32.7]} 13. Nc6 {[%clk 0:02:24.1]} 13... Qc7 {[%clk
0:02:31.1]} 14. Nxe7+ {[%clk 0:02:23.6]} 14... Qxe7 {[%clk 0:02:32]} 15. Qf3
{[%clk 0:02:23.5]} 15... Bb7 {[%clk 0:02:26.3]} 16. Bxf6 {[%clk 0:02:23.2]}
16... gxf6 {[%clk 0:02:25.8]} 17. Qh5 {[%clk 0:02:10.6]} 17... Kg7 {[%clk
0:02:23.5]} 18. Rae1 {[%clk 0:02:11]} 18... Rad8 {[%clk 0:02:08.3]} 19. Re3
{[%clk 0:02:00.9]} 19... Rd5 {[%clk 0:02:08.3]} 20. Qh4 {[%clk 0:01:55.7]} 20...
Rg5 {[%clk 0:02:06]} 21. Rg3 {[%clk 0:01:52.9]} 21... Rd8 {[%clk 0:01:51.9]} 22.
Re1 {[%clk 0:01:47.7]} 22... Rd4 {[%clk 0:01:47.7]} 23. f4 {[%clk 0:01:41.8]}
23... Rxg3 {[%clk 0:01:06.1]} 24. Qxg3+ {[%clk 0:01:42.7]} 24... Kf8 {[%clk
0:01:00.3]} 25. Qh4 {[%clk 0:01:28.5]} 25... Qd6 {[%clk 0:00:46.8]} 26. Qxf6
{[%clk 0:01:21.2]} 26... Qxf4 {[%clk 0:00:36.2]} 27. Qxf4 {[%clk 0:01:15.3]}
27... Rxf4 {[%clk 0:00:37.1]} 28. Re5 {[%clk 0:01:14.6]} 28... Bd5 {[%clk
0:00:25.8]} 29. b3 {[%clk 0:01:02.5]} 29... f6 {[%clk 0:00:19.8]} 30. Re3 {[%clk
0:00:59.1]} 30... Kf7 {[%clk 0:00:18.1]} 31. Rh3 {[%clk 0:00:56.1]} 31... Kg7
{[%clk 0:00:16.9]} 32. Rg3+ {[%clk 0:00:55.9]} 32... Kf7 {[%clk 0:00:17.2]} 33.
Rg6 {[%clk 0:00:55.6]} 33... Rh4 {[%clk 0:00:15.8]} 34. g3 {[%clk 0:00:49.1]}
34... Rh5 {[%clk 0:00:15.6]} 35. Rg4 {[%clk 0:00:49.3]} 35... e5 {[%clk
0:00:14.4]} 36. Bg6+ {[%clk 0:00:48.4]} 1-0

[Event "*** Titled Tuesday Blitz"]
[Site "Chess.com"]
[Date "2020.05.05"]
[Round "5"]
[White "Misticpikachu"]
[Black "szefru"]
[Result "1-0"]
[WhiteElo "2304"]
[BlackElo "2095"]
[TimeControl "180+1"]
[EndTime "10:56:23 PDT"]
[Termination "Misticpikachu won by resignation"]

1. c4 {[%clk 0:03:00.9]} 1... e5 {[%clk 0:02:59.3]} 2. g3 {[%clk 0:03:00.7]}
2... g6 {[%clk 0:02:57.9]} 3. Bg2 {[%clk 0:03:01.2]} 3... Bg7 {[%clk 0:02:57.4]}
4. Nc3 {[%clk 0:03:01.8]} 4... c6 {[%clk 0:02:54.3]} 5. Nf3 {[%clk 0:03:02.2]}
5... f5 {[%clk 0:02:53.9]} 6. d3 {[%clk 0:03:02.2]} 6... Ne7 {[%clk 0:02:54]} 7.
O-O {[%clk 0:03:02.6]} 7... O-O {[%clk 0:02:54.5]} 8. e4 {[%clk 0:03:01.2]} 8...
d6 {[%clk 0:02:50.7]} 9. Re1 {[%clk 0:02:59.3]} 9... h6 {[%clk 0:02:39.1]} 10.
d4 {[%clk 0:02:48.7]} 10... Qc7 {[%clk 0:02:33]} 11. d5 {[%clk 0:02:46.7]} 11...
c5 {[%clk 0:02:25.3]} 12. Bd2 {[%clk 0:02:33.3]} 12... f4 {[%clk 0:02:15.1]} 13.
Rb1 {[%clk 0:02:18.4]} 13... Bg4 {[%clk 0:02:13.5]} 14. h3 {[%clk 0:02:15.3]}
14... Bd7 {[%clk 0:02:12.5]} 15. g4 {[%clk 0:02:13.2]} 15... Kh8 {[%clk
0:01:44.4]} 16. a3 {[%clk 0:02:08]} 16... Qc8 {[%clk 0:01:31]} 17. Nb5 {[%clk
0:01:59.8]} 17... Bxb5 {[%clk 0:01:25.6]} 18. cxb5 {[%clk 0:02:00.7]} 18... b6
{[%clk 0:01:25.2]} 19. b4 {[%clk 0:01:59.6]} 19... Nd7 {[%clk 0:01:22.3]} 20.
bxc5 {[%clk 0:01:58.5]} 20... Nxc5 {[%clk 0:01:14.1]} 21. Bb4 {[%clk 0:01:58.4]}
21... Qd7 {[%clk 0:01:03]} 22. Bxc5 {[%clk 0:01:57.5]} 22... bxc5 {[%clk
0:00:59.1]} 23. Nd2 {[%clk 0:01:56.8]} 23... Rab8 {[%clk 0:00:50.1]} 24. a4
{[%clk 0:01:54.4]} 24... g5 {[%clk 0:00:44.9]} 25. Nc4 {[%clk 0:01:53.8]} 25...
Ng6 {[%clk 0:00:44.2]} 26. f3 {[%clk 0:01:48.9]} 26... Nh4 {[%clk 0:00:44]} 27.
Qb3 {[%clk 0:01:48.1]} 27... h5 {[%clk 0:00:41.9]} 28. Kf2 {[%clk 0:01:46.5]}
28... hxg4 {[%clk 0:00:37.7]} 29. hxg4 {[%clk 0:01:47.1]} 29... Kg8 {[%clk
0:00:38.1]} 30. a5 {[%clk 0:01:45.3]} 30... Kf7 {[%clk 0:00:34.9]} 31. b6 {[%clk
0:01:44.6]} 31... axb6 {[%clk 0:00:34.3]} 32. axb6 {[%clk 0:01:45.1]} 32... Rh8
{[%clk 0:00:31.5]} 33. Qb5 {[%clk 0:01:44.7]} 33... Qe7 {[%clk 0:00:23.3]} 34.
Qc6 {[%clk 0:01:41.8]} 34... Rh6 {[%clk 0:00:18.4]} 35. Qc7 {[%clk 0:01:37.1]}
35... Rb7 {[%clk 0:00:15.7]} 36. Qc6 {[%clk 0:01:31.5]} 36... Bf8 {[%clk
0:00:13]} 37. Na5 {[%clk 0:01:30.9]} 37... Rb8 {[%clk 0:00:12.7]} 38. b7 {[%clk
0:01:28.4]} 38... Nxg2 {[%clk 0:00:12.6]} 39. Kxg2 {[%clk 0:01:27.7]} 39... Qf6
{[%clk 0:00:12.9]} 40. Qc7+ {[%clk 0:01:25.4]} 40... Kg8 {[%clk 0:00:13.2]} 41.
Qxb8 {[%clk 0:01:21.2]} 41... Qh8 {[%clk 0:00:12.9]} 42. Qxf8+ {[%clk
0:01:20.1]} 42... Kxf8 {[%clk 0:00:11.8]} 43. b8=Q+ {[%clk 0:01:21]} 43... Kf7
{[%clk 0:00:12.2]} 44. Qxh8 {[%clk 0:01:21.9]} 44... Rxh8 {[%clk 0:00:12.9]} 45.
Rb7+ {[%clk 0:01:21.9]} 45... Kf6 {[%clk 0:00:12.5]} 1-0

[Event "*** Titled Tuesday Blitz"]
[Site "Chess.com"]
[Date "2020.05.05"]
[Round "5"]
[White "pedromartinez91"]
[Black "GMNeiksans"]
[Result "1/2-1/2"]
[WhiteElo "2526"]
[BlackElo "2761"]
[TimeControl "180+1"]
[EndTime "10:56:24 PDT"]
[Termination "Game drawn - insufficient material"]

1. e4 {[%clk 0:03:00.9]} 1... c5 {[%clk 0:02:54.6]} 2. c3 {[%clk 0:02:57.3]}
2... Nf6 {[%clk 0:02:54.1]} 3. e5 {[%clk 0:02:54.7]} 3... Nd5 {[%clk 0:02:54.3]}
4. Nf3 {[%clk 0:02:55.5]} 4... d6 {[%clk 0:02:53.9]} 5. exd6 {[%clk 0:02:51.6]}
5... e6 {[%clk 0:02:47.9]} 6. d4 {[%clk 0:02:51.4]} 6... cxd4 {[%clk 0:02:47.3]}
7. Qxd4 {[%clk 0:02:51.4]} 7... Nc6 {[%clk 0:02:44.8]} 8. Bb5 {[%clk 0:02:51.1]}
8... Qxd6 {[%clk 0:02:36.6]} 9. O-O {[%clk 0:02:48]} 9... Bd7 {[%clk 0:02:22.9]}
10. Bxc6 {[%clk 0:02:47.8]} 10... Bxc6 {[%clk 0:02:22.7]} 11. Na3 {[%clk
0:02:47.7]} 11... Nf6 {[%clk 0:02:09.5]} 12. Qxd6 {[%clk 0:02:35.7]} 12... Bxd6
{[%clk 0:02:09.1]} 13. Nc4 {[%clk 0:02:36.6]} 13... Bc7 {[%clk 0:02:03.9]} 14.
Nce5 {[%clk 0:02:26.7]} 14... Be4 {[%clk 0:01:53.7]} 15. Re1 {[%clk 0:02:23.8]}
15... Bg6 {[%clk 0:01:32.8]} 16. Bg5 {[%clk 0:02:23.6]} 16... Nd5 {[%clk
0:01:15.3]} 17. Nxg6 {[%clk 0:02:23.5]} 17... hxg6 {[%clk 0:01:15.2]} 18. Rad1
{[%clk 0:02:24]} 18... O-O {[%clk 0:00:59.9]} 19. c4 {[%clk 0:02:21.7]} 19...
Nf6 {[%clk 0:00:57.1]} 20. Bxf6 {[%clk 0:02:19.8]} 20... gxf6 {[%clk 0:00:57.1]}
21. Rd7 {[%clk 0:02:20.4]} 21... Rac8 {[%clk 0:00:56.7]} 22. Red1 {[%clk
0:02:11.5]} 22... Rfd8 {[%clk 0:00:55.1]} 23. Kf1 {[%clk 0:02:11.7]} 23... Rxd7
{[%clk 0:00:54.9]} 24. Rxd7 {[%clk 0:02:12.6]} 24... Kf8 {[%clk 0:00:55.2]} 25.
h4 {[%clk 0:02:09.6]} 25... Ke8 {[%clk 0:00:55.5]} 26. Rd3 {[%clk 0:02:10.1]}
26... Ke7 {[%clk 0:00:55.7]} 27. Ke2 {[%clk 0:02:09.4]} 27... f5 {[%clk
0:00:56.1]} 28. g3 {[%clk 0:01:55.4]} 28... Bd6 {[%clk 0:00:54.3]} 29. b3 {[%clk
0:01:52]} 29... a6 {[%clk 0:00:54.6]} 30. a4 {[%clk 0:01:51.2]} 30... e5 {[%clk
0:00:53.2]} 31. Rd5 {[%clk 0:01:51]} 31... e4 {[%clk 0:00:46.9]} 32. Ng5 {[%clk
0:01:50.7]} 32... Rd8 {[%clk 0:00:39.7]} 33. f3 {[%clk 0:01:38]} 33... Bxg3
{[%clk 0:00:33.3]} 34. Rxd8 {[%clk 0:01:36.9]} 34... Kxd8 {[%clk 0:00:33.7]} 35.
fxe4 {[%clk 0:01:22.4]} 35... fxe4 {[%clk 0:00:34]} 36. Nxf7+ {[%clk 0:01:21.7]}
36... Ke7 {[%clk 0:00:34.2]} 37. Ng5 {[%clk 0:01:22.4]} 37... Bxh4 {[%clk
0:00:33]} 38. Nxe4 {[%clk 0:01:23]} 38... Kd7 {[%clk 0:00:29.7]} 39. b4 {[%clk
0:01:21.9]} 39... Be7 {[%clk 0:00:29.6]} 40. b5 {[%clk 0:01:21.9]} 40... Ke6
{[%clk 0:00:29]} 41. c5 {[%clk 0:01:16.7]} 41... axb5 {[%clk 0:00:19.6]} 42.
axb5 {[%clk 0:01:17.6]} 42... Kd5 {[%clk 0:00:16.5]} 43. c6 {[%clk 0:01:15.7]}
43... bxc6 {[%clk 0:00:15.4]} 44. bxc6 {[%clk 0:01:15.6]} 44... Kxc6 {[%clk
0:00:14.8]} 45. Kf3 {[%clk 0:01:15.3]} 45... Kd5 {[%clk 0:00:14.9]} 46. Nf2
{[%clk 0:01:14.7]} 46... Ke5 {[%clk 0:00:15]} 47. Kg4 {[%clk 0:01:14.5]} 47...
Kf6 {[%clk 0:00:14.9]} 48. Nh3 {[%clk 0:01:14.5]} 48... Kg7 {[%clk 0:00:14.7]}
49. Nf4 {[%clk 0:01:14.6]} 49... Bf6 {[%clk 0:00:14.5]} 50. Nxg6 {[%clk
0:01:14.9]} 1/2-1/2

[Event "*** Titled Tuesday Blitz"]
[Site "Chess.com"]
[Date "2020.05.05"]
[Round "5"]
[White "crywolf1986"]
[Black "bascheyaro"]
[Result "0-1"]
[WhiteElo "2489"]
[BlackElo "2701"]
[TimeControl "180+1"]
[EndTime "10:56:24 PDT"]
[Termination "bascheyaro won by resignation"]

1. d4 {[%clk 0:03:00.8]} 1... d5 {[%clk 0:03:00.2]} 2. Nf3 {[%clk 0:03:01.1]}
2... Nf6 {[%clk 0:03:00.6]} 3. c4 {[%clk 0:03:01.1]} 3... c6 {[%clk 0:03:00.8]}
4. e3 {[%clk 0:03:01.1]} 4... Bf5 {[%clk 0:03:01]} 5. Bd3 {[%clk 0:02:57.8]}
5... Bxd3 {[%clk 0:03:00.3]} 6. Qxd3 {[%clk 0:02:58.7]} 6... e6 {[%clk
0:03:01.2]} 7. O-O {[%clk 0:02:58.1]} 7... Bd6 {[%clk 0:03:01.8]} 8. Nbd2 {[%clk
0:02:57.3]} 8... Nbd7 {[%clk 0:03:02.1]} 9. e4 {[%clk 0:02:56.4]} 9... dxe4
{[%clk 0:03:02.3]} 10. Nxe4 {[%clk 0:02:57.3]} 10... Nxe4 {[%clk 0:03:03.2]} 11.
Qxe4 {[%clk 0:02:58]} 11... Nf6 {[%clk 0:03:04.1]} 12. Qe2 {[%clk 0:02:57.5]}
12... h6 {[%clk 0:03:04.6]} 13. b3 {[%clk 0:02:56.9]} 13... O-O {[%clk
0:03:00.9]} 14. Bb2 {[%clk 0:02:57.1]} 14... Qe7 {[%clk 0:03:01.1]} 15. Rad1
{[%clk 0:02:53.7]} 15... Rad8 {[%clk 0:03:01]} 16. Rd3 {[%clk 0:02:52.8]} 16...
Ba3 {[%clk 0:03:00.1]} 17. Ba1 {[%clk 0:02:52.4]} 17... c5 {[%clk 0:02:59.2]}
18. Rfd1 {[%clk 0:02:51.8]} 18... cxd4 {[%clk 0:02:59.1]} 19. Bxd4 {[%clk
0:02:50.1]} 19... a6 {[%clk 0:02:58]} 20. g3 {[%clk 0:02:43.6]} 20... b5 {[%clk
0:02:50.3]} 21. Ne5 {[%clk 0:02:41.5]} 21... Rc8 {[%clk 0:02:46.9]} 22. Ba1
{[%clk 0:02:33]} 22... bxc4 {[%clk 0:02:42.5]} 23. Nxc4 {[%clk 0:02:24.1]} 23...
Bc5 {[%clk 0:02:42.5]} 24. Nd6 {[%clk 0:02:18.1]} 24... Bxd6 {[%clk 0:02:41.4]}
25. Rxd6 {[%clk 0:02:19]} 25... a5 {[%clk 0:02:39]} 26. Qe5 {[%clk 0:02:13.4]}
26... Rfd8 {[%clk 0:02:34.5]} 27. Rxd8+ {[%clk 0:01:36.9]} 27... Rxd8 {[%clk
0:02:35.4]} 28. Rc1 {[%clk 0:01:36.5]} 28... Qb4 {[%clk 0:02:16.7]} 29. Bc3
{[%clk 0:01:22.7]} 29... Qa3 {[%clk 0:02:16.8]} 30. Ra1 {[%clk 0:01:21.6]} 30...
Rd5 {[%clk 0:02:02.2]} 31. Qb8+ {[%clk 0:01:20.9]} 31... Kh7 {[%clk 0:02:02.6]}
32. Bxf6 {[%clk 0:01:20.1]} 32... gxf6 {[%clk 0:02:03.5]} 33. Qe8 {[%clk
0:01:14.6]} 33... Kg7 {[%clk 0:02:02.8]} 34. Qc8 {[%clk 0:01:03.2]} 34... Rd2
{[%clk 0:02:02.6]} 35. Qc4 {[%clk 0:00:44.1]} 35... Rxa2 {[%clk 0:01:59.6]} 36.
Re1 {[%clk 0:00:40]} 36... Ra1 {[%clk 0:01:58.6]} 37. Rxa1 {[%clk 0:00:36.5]}
37... Qxa1+ {[%clk 0:01:59.5]} 38. Kg2 {[%clk 0:00:36.3]} 38... Qe5 {[%clk
0:01:59.3]} 39. Kf3 {[%clk 0:00:35.1]} 39... Qh5+ {[%clk 0:01:51.9]} 40. Qg4+
{[%clk 0:00:34.7]} 40... Qxg4+ {[%clk 0:01:51.6]} 41. Kxg4 {[%clk 0:00:35.6]}
41... f5+ {[%clk 0:01:50.2]} 42. Kf3 {[%clk 0:00:33.7]} 42... Kf6 {[%clk
0:01:46.8]} 43. Ke3 {[%clk 0:00:31.9]} 43... Ke5 {[%clk 0:01:47.1]} 44. f4+
{[%clk 0:00:30.8]} 44... Kd5 {[%clk 0:01:47.3]} 45. Kd3 {[%clk 0:00:30.8]} 45...
f6 {[%clk 0:01:47.4]} 46. h3 {[%clk 0:00:29.3]} 46... h5 {[%clk 0:01:47.3]} 47.
Ke3 {[%clk 0:00:28.5]} 47... e5 {[%clk 0:01:47.3]} 48. fxe5 {[%clk 0:00:22.8]}
48... fxe5 {[%clk 0:01:48.2]} 49. Kd3 {[%clk 0:00:22.1]} 49... Kc5 {[%clk
0:01:48.3]} 50. Kc3 {[%clk 0:00:21.9]} 50... e4 {[%clk 0:01:48.4]} 51. Kc2
{[%clk 0:00:21.9]} 51... Kb4 {[%clk 0:01:48.6]} 52. Kb2 {[%clk 0:00:21.2]} 52...
e3 {[%clk 0:01:48.7]} 53. Kc2 {[%clk 0:00:21]} 53... e2 {[%clk 0:01:49.1]} 54.
Kd2 {[%clk 0:00:21]} 54... Kxb3 {[%clk 0:01:50]} 55. Kxe2 {[%clk 0:00:21.4]}
55... a4 {[%clk 0:01:50.9]} 56. g4 {[%clk 0:00:21.2]} 56... fxg4 {[%clk
0:01:50.5]} 0-1